bitfinex/quotes_ETHUSD_20240925
["timestamp","ask_amount","ask_price","bid_price","bid_amount"]
[1727305341808,3.80644821,2576.1,2575.3,0.8372]
[1727305342018,0.9021,2576.2,2575.9,3.88202]
[1727305342226,1.20967232,2576.5,2575.9,3.88202]
[1727305342227,0.8351,2576.5,2576.4,3.88138]
[1727305342511,0.8351,2576.5,2576.2,7.76314]
[1727305342512,1.01825688,2576.5,2576.2,7.76314]
[1727305342715,7.36,2576.6,2576.2,7.76314]
[1727305342716,0.83782569,2576.4,2576.2,7.76315]
[1727305343008,0.83782569,2576.4,2576.3,3.88153]
[1727305343180,0.83782569,2576.4,2575.7,4.74142]
[1727305343380,0.83782569,2576.4,2576.0,3.88196]
[1727305343381,0.09705419,2576.3,2576.0,3.88196]
[1727305343594,1.03161999,2576.3,2576.0,3.88196]
[1727305343765,1.03161999,2576.3,2576.0,3.8819]
[1727305343968,0.83782569,2576.4,2576.0,3.8819]
[1727305345469,0.83782569,2576.4,2576.2,3.88168]
[1727305346122,0.55,2576.5,2576.4,3.88125]
[1727305346350,7.36,2576.6,2576.5,3.88123]
[1727305346611,2.7351,2576.8,2576.7,3.88093]
[1727305346612,1.9,2576.8,2576.7,3.88093]
[1727305346817,1.9,2576.8,2576.6,3.88103]
[1727305347023,1.9,2576.8,2576.5,3.88123]
[1727305347024,1.9,2576.8,2576.5,3.88115]
[1727305347378,2.09970285,2576.8,2576.6,3.88104]
[1727305347872,2.64970285,2576.8,2576.7,3.88093]
[1727305348178,2.64970285,2576.8,2576.6,3.88104]
[1727305348715,2.64970285,2576.8,2576.7,3.88093]
[1727305348899,2.45,2576.8,2576.7,3.88093]
[1727305349212,1.9,2576.8,2576.7,4.75023]
[1727305353219,1.9,2576.8,2576.5,3.88121]
[1727305353419,1.9,2576.8,2576.4,3.88129]
[1727305353822,1.4234,2576.6,2576.2,3.88165]
[1727305354024,0.55,2576.4,2576.0,4.74196]
[1727305354230,0.55,2576.4,2576.1,3.88181]
[1727305354526,0.55,2576.4,2576.0,3.88196]
[1727305354527,0.09704493,2576.3,2576.0,3.88196]
[1727305354818,0.09704643,2576.5,2576.2,0.86]
[1727305354982,0.55,2576.6,2576.4,3.88138]
[1727305355923,0.64703571,2576.6,2576.4,3.88136]
[1727305358128,0.55,2576.6,2576.5,3.88123]
[1727305358290,0.55,2576.6,2576.4,3.88137]
[1727305358495,0.55,2576.6,2576.5,3.88123]
[1727305360297,0.55,2576.7,2576.6,3.88108]
[1727305361836,0.6470319,2576.7,2576.6,3.88108]
[1727305361990,0.6470319,2576.7,2576.5,3.88121]
[1727305362297,0.55,2576.7,2576.6,3.88108]
[1727305367353,1.9,2576.8,2576.7,3.88093]
[1727305367931,1.9,2576.8,2576.7,4.74603]
[1727305369229,1.9,2576.8,2576.7,7.74603]
[1727305380241,1.9,2576.8,2576.7,11.42110285]
[1727305380453,0.0374707,2577.1,2577.0,6.88048]
[1727305381539,0.0374707,2577.1,2577.0,7.75218]
[1727305388647,0.0374707,2577.1,2577.0,3.88048]
[1727305390179,0.55,2577.0,2576.7,3.88084]
[1727305390482,0.55,2577.0,2576.6,3.88099]
[1727305390483,0.8651,2576.8,2576.6,3.88099]
[1727305390981,0.8651,2576.8,2576.5,3.88113]
[1727305391283,0.8651,2576.8,2576.3,3.88142]
[1727305391284,0.64702959,2576.7,2576.3,3.88142]
[1727305391496,1.55381383,2576.7,2576.3,3.88142]
[1727305392387,1.55381383,2576.7,2575.9,3.88203]
[1727305392388,4.43124,2576.5,2575.9,3.88203]
[1727305392547,4.43124,2576.5,2576.0,3.8819]
[1727305392548,0.55,2576.3,2576.0,3.8819]
[1727305392749,0.55,2576.3,2576.1,3.88182]
[1727305393066,0.55,2576.3,2576.0,3.8819]
[1727305393243,0.55,2576.3,2576.0,3.88188]
[1727305393444,0.8602,2576.4,2576.2,3.88158]
[1727305393670,0.8602,2576.4,2576.2,7.76317]
[1727305394042,0.8602,2576.4,2576.2,3.88158]
[1727305396760,0.8602,2576.4,2576.3,3.88153]
[1727305397087,1.4102,2576.4,2576.2,3.88158]
[1727305398801,1.4102,2576.4,2576.0,3.88188]
[1727305399159,1.4102,2576.4,2576.1,3.88176]
[1727305399373,1.4102,2576.4,2575.9,3.88208]
[1727305399374,0.64704572,2576.3,2575.9,3.88208]
[1727305399690,0.55,2576.3,2575.8,3.88219]
[1727305399992,0.55,2576.3,2576.0,3.88197]
[1727305401057,0.09705114,2576.2,2575.8,7.76432]
[1727305401388,0.8334,2576.1,2575.8,7.76432]
[1727305401601,0.8334,2576.1,2575.8,7.76434]
[1727305401889,0.8334,2575.7,2575.3,3.88296]
[1727305402093,0.55,2575.4,2575.0,3.88346]
[1727305402265,0.55,2575.4,2574.9,3.88354]
[1727305402266,0.55,2575.4,2575.1,3.88332]
[1727305402464,0.55,2575.4,2574.7,0.8185]
[1727305402465,0.55,2575.4,2575.0,3.88346]
[1727305402786,0.55,2575.4,2575.2,3.88318]
[1727305402955,0.8334,2575.5,2575.3,3.88304]
[1727305403450,0.8334,2575.5,2575.3,3.88296]
[1727305403654,0.8334,2575.5,2575.3,7.76591]
[1727305404056,1.3834,2575.5,2575.4,3.88289]
[1727305404301,1.3834,2575.5,2575.3,3.88295]
[1727305404302,1.3834,2575.5,2575.3,7.7659]
[1727305404458,1.3834,2575.5,2575.3,7.76591]
[1727305404662,0.8351,2575.9,2574.9,3.67507285]
[1727305404857,8.20448099,2575.8,2575.2,3.88305]
[1727305405056,0.55,2575.6,2575.1,3.88325]
[1727305405285,0.55,2575.4,2575.0,3.88346]
[1727305405556,0.55,2575.4,2575.0,3.88339]
[1727305405557,0.09708335,2575.3,2575.0,3.88339]
[1727305406095,0.09708335,2575.3,2575.1,3.88333]
[1727305406392,0.09708335,2575.3,2575.0,3.88339]
[1727305406592,0.09708335,2575.3,2575.1,3.88332]
[1727305406897,0.55,2575.5,2575.1,3.88332]
[1727305407195,0.09708322,2575.4,2575.1,3.88332]
[1727305407698,0.09708322,2575.4,2575.0,3.88339]
[1727305407908,0.55,2575.2,2574.8,3.88369]
[1727305408072,0.55,2575.0,2574.8,3.88369]
[1727305409409,0.55,2575.2,2574.8,3.88369]
[1727305412597,0.55,2575.2,2574.9,3.8836]
[1727305412759,0.8753,2575.3,2575.0,3.88336]
[1727305412960,8.2374,2575.6,2575.3,3.88293]
[1727305413266,0.8774,2575.6,2575.3,3.88293]
[1727305413786,0.8774,2575.6,2575.1,7.76644]
[1727305414093,0.55,2575.5,2575.2,3.88318]
[1727305414504,0.8774,2575.6,2575.4,3.88289]
[1727305414823,6.88207,2576.0,2575.5,3.88274]
[1727305414824,3.0,2576.0,2575.5,3.88274]
[1727305415008,3.04330528,2575.9,2575.3,3.88292]
[1727305415159,6.92546528,2575.9,2575.3,3.88292]
[1727305415361,0.99254653,2575.8,2575.3,3.88292]
[1727305415598,0.55,2575.7,2575.3,3.88292]
[1727305416809,0.55,2575.7,2575.4,3.88288]
[1727305418900,0.55,2575.7,2575.2,3.88315]
[1727305419097,0.55,2575.7,2575.3,3.88304]
[1727305419400,0.55,2575.7,2575.4,3.88287]
[1727305419956,0.55,2575.7,2575.3,3.88301]
[1727305420393,0.9991752,2575.6,2575.2,3.88315]
[1727305420882,0.9991752,2575.6,2575.2,7.76626]
[1727305421384,0.9991752,2575.6,2575.2,3.88311]
[1727305421810,0.55,2575.5,2575.0,3.88337]
[1727305422039,0.55,2575.3,2574.9,3.88358]
[1727305422183,0.0970876,2575.2,2574.9,3.88358]
[1727305422702,0.0970876,2575.2,2574.8,3.88376]
[1727305422893,0.55,2575.1,2574.6,3.88398]
[1727305423082,0.55,2575.1,2574.7,3.8839]
[1727305424017,0.55,2575.1,2574.0,3.71254355]
[1727305424018,0.55,2574.6,2574.0,0.0374707]
[1727305424180,0.55,2574.3,2574.0,0.0374707]
[1727305424386,0.09712311,2574.2,2574.0,0.0374707]
[1727305424715,7.55927285,2574.6,2574.0,0.0374707]
[1727305424716,0.55,2574.5,2574.0,3.9224407]
[1727305424915,4.43427,2574.5,2574.0,3.9224407]
[1727305425497,0.55,2574.3,2574.0,0.0374707]
[1727305426001,0.64712303,2574.3,2574.0,3.9223807]
[1727305427018,0.55,2574.3,2574.0,0.0374707]
[1727305428128,0.55,2574.3,2574.0,3.9224307]
[1727305428805,0.55,2574.3,2574.0,3.9224407]
[1727305431826,0.09712289,2574.2,2574.0,0.0374707]
[1727305433232,0.64712287,2574.3,2574.0,3.9224507]
[1727305435235,0.55,2574.3,2574.0,3.9224507]
[1727305436845,0.55,2574.3,2574.0,0.0374707]
[1727305437046,0.64712275,2574.3,2574.0,0.0374707]
[1727305437766,0.55,2574.5,2574.1,7.76949]
[1727305437974,3.55,2574.6,2574.2,3.88466]
[1727305438174,0.8684,2574.7,2574.2,3.88466]
[1727305438485,11.24359,2575.0,2574.2,3.88466]
[1727305438486,4.76472,2574.9,2574.4,3.88438]
[1727305438666,3.88397,2574.7,2574.3,0.8475]
[1727305439233,3.98093643,2574.8,2574.3,0.8475]
[1727305439473,3.88411,2574.6,2574.1,4.73228]
[1727305439673,0.09711539,2574.5,2574.1,4.73228]
[1727305440374,0.09711539,2574.5,2574.1,4.73225]
[1727305440575,3.88411,2574.6,2574.1,4.73225]
[1727305440773,0.55,2574.5,2574.1,8.61702]
[1727305441003,0.55,2574.5,2574.1,4.73225]
[1727305441634,0.64711583,2574.5,2574.1,3.88475]
[1727305441832,0.64711583,2574.5,2574.0,0.0374707]
[1727305441833,3.8847,2574.2,2574.0,0.0374707]
[1727305442043,0.55,2574.3,2574.0,0.0374707]
[1727305442044,0.64712249,2574.3,2574.0,0.0374707]
[1727305442264,0.64712249,2574.3,2574.0,3.9224607]
[1727305442575,0.64712249,2574.3,2574.0,0.0374707]
[1727305442576,0.55,2574.3,2574.0,0.0374707]
[1727305443082,0.55,2574.3,2574.1,3.88484]
[1727305443934,0.55,2574.3,2574.0,0.0374707]
[1727305444664,0.55,2574.3,2574.0,3.9224407]
[1727305445786,0.55,2574.3,2574.0,0.0374707]
[1727305446788,0.64712214,2574.3,2574.0,0.0374707]
[1727305447489,0.55,2574.3,2574.0,3.9224307]
[1727305448530,0.9058,2574.4,2574.1,3.88477]
[1727305448697,4.43414,2574.6,2574.2,3.88462]
[1727305448881,0.55,2574.6,2574.2,3.88462]
[1727305449281,0.55,2574.6,2574.2,8.64482]
[1727305449524,0.55,2574.6,2574.2,8.6448]
[1727305449688,0.55,2574.6,2574.2,4.7602]
[1727305450826,0.55,2574.6,2574.2,0.8756]
[1727305451059,0.55,2574.6,2574.1,3.88473]
[1727305451224,4.43417,2574.6,2574.1,3.88473]
[1727305453053,0.09711559,2574.5,2574.1,3.88482]
[1727305453351,3.8412,2574.7,2574.3,3.88451]
[1727305454118,3.80644821,2574.9,2574.4,3.88431]
[1727305454321,0.55,2574.8,2574.4,3.88431]
[1727305454693,0.55,2574.8,2574.3,3.88444]
[1727305454819,0.55,2574.8,2574.4,3.88432]
[1727305455020,4.4338,2574.8,2574.4,3.88432]
[1727305455532,9.00734821,2575.0,2574.7,3.88394]
[1727305455719,5.53060821,2575.2,2574.7,3.88394]
[1727305455920,4.72416,2575.2,2574.7,3.88394]
[1727305456262,0.8409,2575.2,2574.6,0.07767759]
[1727305456417,0.80644821,2575.3,2574.5,0.834]
[1727305456616,3.88305,2575.3,2574.6,3.88408]
[1727305456935,3.88305,2575.3,2574.8,3.88379]
[1727305457353,8.57243821,2575.4,2574.8,7.76747]
[1727305457520,4.43304,2575.3,2574.8,3.88368]
[1727305458268,4.43304,2575.3,2574.8,7.7674]
[1727305458551,4.43304,2575.3,2574.8,3.88368]
[1727305458857,4.53012637,2575.3,2574.8,3.88368]
[1727305459415,0.55,2574.9,2574.4,3.88433]
[1727305459755,0.55,2574.9,2574.5,3.88423]
[1727305459756,0.55,2574.7,2574.5,3.88423]
[1727305459951,3.88364,2574.9,2574.3,0.8561]
[1727305459952,0.55,2574.8,2574.3,0.8561]
[1727305460157,4.4338,2574.8,2574.3,4.74065]
[1727305460323,4.53090524,2574.8,2574.3,4.74065]
[1727305460518,0.64710524,2574.8,2574.3,4.74065]
[1727305461320,0.55,2574.8,2574.3,4.74065]
[1727305461639,0.55,2574.8,2574.4,3.88437]
[1727305461845,0.64710521,2574.8,2574.4,3.88437]
[1727305463451,4.53090521,2574.8,2574.3,3.88454]
[1727305463660,0.64710521,2574.8,2574.4,3.88437]
[1727305464558,0.55,2574.8,2574.4,7.76869]
[1727305465086,0.64710511,2574.8,2574.4,3.88432]
[1727305465459,0.64710511,2574.8,2574.4,7.76862]
[1727305466360,1.45355332,2574.8,2574.4,7.76862]
[1727305466699,1.35644821,2574.8,2574.4,7.76862]
[1727305466905,1.4535533,2574.8,2574.4,7.76862]
[1727305467063,1.4535533,2574.8,2574.4,7.76861]
[1727305467267,1.35644821,2574.8,2574.5,3.88423]
[1727305467667,1.45355329,2574.8,2574.5,3.88423]
[1727305468171,1.35644821,2574.8,2574.5,3.88423]
[1727305468674,1.45355328,2574.8,2574.5,3.88423]
[1727305469303,0.80644821,2574.7,2574.5,3.88423]
[1727305469464,1.45355328,2574.8,2574.5,3.8841]
[1727305469659,0.80644821,2574.7,2574.5,3.8841]
[1727305470923,0.80644821,2574.6,2574.4,3.8843]
[1727305471084,0.80644821,2574.6,2574.2,3.88459]
[1727305471293,1.35644821,2574.4,2574.1,3.88478]
[1727305473916,0.80644821,2574.3,2574.1,3.88478]
[1727305474416,0.80644821,2574.3,2574.0,3.9223907]
[1727305475481,1.35644821,2574.4,2574.0,3.9223907]
[1727305475710,2.63787391,2574.4,2574.0,3.9223907]
[1727305477309,0.80644821,2574.3,2574.0,0.0374707]
[1727305477512,4.81739203,2574.2,2574.0,0.0374707]
[1727305477714,1.30680457,2574.1,2574.0,0.0374707]
[1727305477913,1.99986905,2574.1,2574.0,0.0374707]
[1727305478312,7.57731091,2574.1,2574.0,0.0374707]
[1727305478513,9.06155602,2574.1,2574.0,0.0374707]
[1727305478830,10.98921474,2574.1,2574.0,0.0374707]
[1727305479353,10.1788609,2574.1,2574.0,0.0374707]
[1727305479730,10.58399251,2574.1,2574.0,0.0374707]
[1727305480257,8.96441448,2574.1,2574.0,0.0374707]
[1727305481363,10.17853289,2574.1,2574.0,0.0374707]
[1727305481660,3.29368289,2574.1,2574.0,0.0374707]
[1727305481831,1.3865,2574.1,2574.0,0.0374707]
[1727305482355,2.19566634,2574.1,2574.0,0.0374707]
[1727305482921,6.08051634,2574.1,2574.0,0.0374707]
[1727305483337,2.19566634,2574.1,2574.0,0.0374707]
[1727305484935,6.08051634,2574.1,2574.0,0.0374707]
[1727305485957,5.27135,2574.1,2574.0,0.0374707]
[1727305486176,0.80916634,2574.2,2574.0,0.0374707]
[1727305486472,4.21411841,2574.3,2574.0,0.0374707]
[1727305486473,3.80916634,2574.3,2574.0,0.0374707]
[1727305489451,7.69379634,2574.3,2574.0,0.0374707]
[1727305490980,0.90628921,2574.2,2574.0,0.0374707]
[1727305491333,0.09712287,2574.2,2574.0,0.0374707]
[1727305491631,0.90628921,2574.2,2574.0,0.0374707]
[1727305492027,0.09712287,2574.2,2574.0,0.0374707]
[1727305492676,2.27994197,2574.2,2574.0,0.0374707]
[1727305492967,3.88485,2574.1,2574.0,0.0374707]
[1727305494167,1.37365276,2574.2,2574.0,0.0374707]
[1727305494389,0.55,2574.2,2574.0,0.0374707]
[1727305495629,4.53185773,2574.2,2574.0,0.0374707]
[1727305496334,5.34102407,2574.2,2574.0,0.0374707]
[1727305497367,1.45629407,2574.2,2574.0,0.0374707]
[1727305497571,4.43485,2574.1,2574.0,0.0374707]
[1727305498073,0.80916634,2574.2,2574.0,0.0374707]
[1727305498273,0.80916634,2574.3,2574.0,0.0374707]
[1727305498581,3.8844,2574.4,2574.0,3.9224007]
[1727305498888,0.55,2574.4,2574.0,3.9223707]
[1727305499170,0.55,2574.4,2574.1,3.88477]
[1727305499376,0.55,2574.4,2574.0,3.9223707]
[1727305500248,2.88174222,2574.4,2574.0,0.0374707]
[1727305500447,1.3799,2574.1,2574.0,0.0374707]
[1727305500656,5.36188261,2574.1,2574.0,0.0374707]
[1727305500869,1.47703261,2574.1,2574.0,0.0374707]
[1727305501278,5.36188261,2574.1,2574.0,0.0374707]
[1727305501775,2.46782439,2574.1,2574.0,0.0374707]
[1727305501936,5.36188261,2574.1,2574.0,0.0374707]
[1727305504069,6.17104895,2574.1,2574.0,0.0374707]
[1727305504256,6.98146064,2574.1,2574.0,0.0374707]
[1727305504667,9.98146064,2574.1,2574.0,0.0374707]
[1727305504869,8.26475,2574.1,2574.0,0.0374707]
[1727305505184,11.66573241,2574.1,2574.0,0.0374707]
[1727305505554,11.66588273,2574.1,2574.0,0.0374707]
[1727305505888,13.77534675,2574.1,2574.0,0.0374707]
[1727305509918,13.77534675,2574.1,2573.2,0.0374707]
[1727305509919,4.43606,2573.3,2573.2,0.0374707]
[1727305510058,14.03146752,2573.3,2573.2,0.0374707]
[1727305510262,12.41493885,2573.3,2573.2,0.0374707]
[1727305510786,14.03022018,2573.3,2573.2,0.0374707]
[1727305511479,12.41493885,2573.3,2573.2,0.0374707]
[1727305511885,13.62588453,2573.3,2573.2,0.0374707]
[1727305512381,4.35745622,2573.3,2573.2,0.0374707]
[1727305512680,0.80745622,2573.5,2573.2,0.0374707]
[1727305512979,4.69315622,2573.6,2573.2,0.0374707]
[1727305513289,0.80745622,2573.8,2573.4,3.88583]
[1727305513490,0.80745622,2573.9,2573.4,3.88583]
[1727305513788,7.0748754,2574.1,2573.8,3.8852]
[1727305513789,0.80745622,2574.1,2573.8,3.8852]
[1727305513945,0.09713251,2574.0,2573.6,0.8389]
[1727305514145,0.80745622,2574.2,2573.7,3.88531]
[1727305514384,0.80745622,2574.1,2573.7,3.88531]
[1727305514580,0.80745622,2574.2,2573.7,3.88531]
[1727305514815,0.80745622,2574.1,2573.7,3.88531]
[1727305515705,0.80745622,2574.2,2573.7,3.88531]
[1727305515849,0.90458881,2574.1,2573.6,0.8389]
[1727305516186,0.09713259,2574.1,2573.7,3.88538]
[1727305516345,0.80745622,2574.2,2574.0,3.88487]
[1727305516545,0.80745622,2574.4,2574.0,3.88487]
[1727305516781,0.80745622,2574.4,2574.1,3.88484]
[1727305516985,0.80745622,2574.5,2574.1,8.64158]
[1727305517160,0.80745622,2574.4,2574.1,4.75674]
[1727305517343,0.80745622,2574.5,2574.1,0.872]
[1727305517981,0.80745622,2574.4,2574.1,4.75682]
[1727305518160,0.80745622,2574.5,2574.2,3.88468]
[1727305518360,0.80745622,2574.8,2574.5,0.8454]
[1727305518585,1.2111655,2574.9,2574.5,0.8454]
[1727305518586,0.80745622,2574.9,2574.5,0.8454]
[1727305518904,1.2111655,2575.0,2574.5,0.8454]
[1727305518905,0.80745622,2575.0,2574.5,0.8454]
[1727305519058,0.80745622,2575.0,2574.5,4.72963]
[1727305519388,0.80745622,2575.0,2574.6,3.88401]
[1727305519693,1.2111655,2575.1,2574.7,3.88394]
[1727305519694,0.80745622,2575.1,2574.7,3.88394]
[1727305519898,0.80745622,2575.2,2574.8,3.88368]
[1727305520198,0.80745622,2575.4,2574.8,3.88368]
[1727305520353,0.80745622,2575.4,2574.8,3.88377]
[1727305520558,0.80745622,2575.5,2574.9,3.88352]
[1727305520760,0.80745622,2575.6,2575.0,0.9068]
[1727305521371,0.80745622,2575.6,2575.1,3.88328]
[1727305521576,0.80745622,2575.8,2575.1,3.88322]
[1727305521998,4.68964622,2575.9,2575.1,3.88322]
[1727305522165,6.20395892,2575.9,2575.1,3.88322]
[1727305522872,6.20395892,2575.9,2575.4,4.79675]
[1727305522873,0.80745622,2575.9,2575.4,4.79675]
[1727305523206,0.80745622,2576.0,2575.4,0.9139]
[1727305523411,4.86027517,2576.0,2575.4,0.9139]
[1727305524307,0.55,2575.9,2575.4,0.9139]
[1727305524462,3.88245,2575.7,2575.4,0.9139]
[1727305524664,0.09707022,2575.6,2575.0,0.9014]
[1727305525120,4.85120424,2575.6,2575.0,0.9014]
[1727305525277,0.0970806,2575.5,2575.0,0.9014]
[1727305525466,0.0970806,2575.5,2575.0,4.78485]
[1727305525669,0.0970806,2575.5,2575.0,0.9014]
[1727305525991,3.55,2575.7,2575.1,3.88332]
[1727305526221,0.55,2575.6,2575.1,3.88332]
[1727305527129,0.55,2575.8,2575.2,3.88312]
[1727305527478,3.88253,2575.7,2575.0,4.7848]
[1727305527682,0.55,2575.6,2575.0,4.7848]
[1727305528099,4.52976367,2575.6,2575.0,4.7848]
[1727305528587,0.55,2575.6,2575.1,3.8833]
[1727305529583,6.88221,2575.9,2575.4,0.8387]
[1727305529837,3.88231,2575.8,2575.4,0.8387]
[1727305529981,3.88255,2575.7,2575.4,0.8387]
[1727305530199,3.88254,2575.7,2575.1,4.72194]
[1727305530683,3.88253,2575.7,2575.1,4.72194]
[1727305531086,3.88253,2575.7,2575.1,8.60518]
[1727305531482,3.88253,2575.7,2575.1,8.60517]
[1727305531687,3.88253,2575.7,2575.2,3.88318]
[1727305532021,5.1653401,2575.7,2575.1,4.72193]
[1727305532329,3.88282,2575.5,2575.1,0.8387]
[1727305532532,0.09708114,2575.4,2574.9,3.88354]
[1727305532705,1.00614854,2575.4,2574.9,3.88354]
[1727305533023,0.55,2575.3,2574.9,3.88354]
[1727305534723,4.53022683,2575.3,2574.8,0.8659]
[1727305535026,4.53022683,2575.3,2574.8,4.74962]
[1727305535228,5.55100825,2575.3,2574.8,0.8659]
[1727305535435,0.55,2574.9,2574.5,0.9175]
[1727305535590,0.64710081,2574.9,2574.5,0.9175]
[1727305535789,0.55,2574.9,2574.6,3.88409]
[1727305536723,0.55,2574.9,2574.5,0.9175]
[1727305536931,3.88382,2574.8,2574.1,4.79907]
[1727305537092,3.88382,2574.8,2574.1,0.9143]
[1727305537093,3.88411,2574.6,2574.1,0.9143]
[1727305537288,0.55,2574.6,2574.2,3.88461]
[1727305537853,3.98138175,2574.5,2574.0,3.88491]
[1727305538021,0.09711175,2574.5,2574.0,3.88491]
[1727305538341,4.5312137,2574.6,2574.1,3.88474]
[1727305538668,4.5312137,2574.6,2573.6,7.56059285]
[1727305538669,4.72415,2574.2,2573.6,3.88551]
[1727305538803,0.55,2574.1,2573.3,0.8903]
[1727305539157,0.0971335,2574.0,2573.4,3.88578]
[1727305539512,0.09713329,2574.0,2573.4,7.77156]
[1727305539708,0.09713329,2574.0,2573.4,3.88578]
[1727305540039,0.09713329,2574.0,2573.6,3.8856]
[1727305541404,0.09713329,2574.0,2573.6,3.88552]
[1727305541714,4.43556,2573.7,2573.2,0.0374707]
[1727305541933,4.43606,2573.3,2573.2,0.0374707]
[1727305542156,0.55,2573.3,2573.2,0.0374707]
[1727305544453,4.43606,2573.3,2573.2,0.0374707]
[1727305544747,0.55,2573.3,2573.2,0.0374707]
[1727305545332,4.53322188,2573.3,2573.2,0.0374707]
[1727305545531,5.66161319,2573.3,2573.2,0.0374707]
[1727305547022,5.7587799,2573.3,2573.2,0.0374707]
[1727305547523,5.66161319,2573.3,2573.2,0.0374707]
[1727305547751,8.66161319,2573.3,2573.2,0.0374707]
[1727305555658,0.55,2573.3,2573.2,0.0374707]
[1727305556274,0.8278,2573.7,2573.2,3.9235707]
[1727305556574,0.8278,2573.7,2573.3,3.88605]
[1727305557673,0.55,2573.6,2573.4,3.8859]
[1727305557870,0.55,2573.7,2573.4,3.8859]
[1727305558072,0.55,2573.7,2573.3,3.88606]
[1727305558573,0.55,2573.7,2573.4,3.88587]
[1727305560343,1.15101482,2573.7,2573.4,3.88587]
[1727305560539,0.55,2573.8,2573.7,3.88536]
[1727305560878,0.55,2573.8,2573.3,0.846]
[1727305560879,8.2435,2574.2,2573.3,4.52107285]
[1727305561076,8.2435,2574.2,2573.2,3.9236707]
[1727305561077,0.8835,2574.5,2574.3,3.88444]
[1727305561240,3.67507285,2574.9,2574.4,3.8843]
[1727305561241,0.8835,2574.9,2574.4,3.8843]
[1727305561434,0.75586529,2574.8,2574.3,3.88444]
[1727305561634,0.75586529,2574.8,2574.4,3.88425]
[1727305562589,7.36,2575.1,2574.9,3.88362]
[1727305562740,0.8633,2575.2,2574.7,3.88384]
[1727305562940,0.84214829,2575.1,2574.7,3.88384]
[1727305563179,0.84214829,2575.1,2574.8,3.88378]
[1727305563565,0.84214829,2575.1,2574.7,3.88384]
[1727305563781,0.84214829,2575.1,2574.9,3.88364]
[1727305563984,0.55,2575.0,2574.9,3.88364]
[1727305564504,0.55,2575.1,2574.9,3.88364]
[1727305565001,11.24254,2575.7,2574.7,3.88387]
[1727305565002,7.36,2576.0,2575.1,0.8918]
[1727305565302,0.8373,2576.1,2575.1,0.8918]
[1727305565303,0.8373,2576.1,2576.0,3.88198]
[1727305565502,0.0374707,2576.3,2575.9,3.88204]
[1727305565661,0.88081806,2576.3,2575.9,3.88204]
[1727305565865,0.88081806,2576.3,2575.7,4.76305]
[1727305565866,0.88081806,2576.3,2575.7,0.8807]
[1727305566063,0.88081806,2576.3,2576.2,3.88168]
[1727305566064,0.0374707,2576.3,2576.2,3.88168]
[1727305567299,0.0374707,2576.3,2576.1,3.88183]
[1727305567593,0.0374707,2576.3,2576.2,4.73918]
[1727305568975,0.0374707,2576.3,2576.2,4.78144075]
[1727305569704,0.0374707,2576.3,2576.2,4.73918]
[1727305570402,0.0374707,2576.3,2576.2,3.88168]
[1727305571308,0.0374707,2576.3,2576.2,4.75288]
[1727305573492,0.0374707,2576.3,2576.2,7.75288]
[1727305573817,0.0374707,2577.1,2577.0,3.88048]
[1727305580798,0.0374707,2577.1,2577.0,4.77428]
[1727305581011,0.0374707,2577.1,2577.0,7.77428]
[1727305582782,0.0374707,2577.1,2577.0,12.29612654]
[1727305583010,0.0374707,2577.9,2577.0,12.29612654]
[1727305583011,0.0374707,2577.9,2577.1,3.0]
[1727305583183,0.0374707,2577.9,2577.8,7.74687]
[1727305583390,0.0374707,2577.9,2577.8,12.26871654]
[1727305583627,0.0374707,2577.9,2577.8,7.74687]
[1727305583830,0.0374707,2577.9,2577.7,3.87941]
[1727305584011,0.0374707,2577.9,2577.8,3.87927]
[1727305584819,0.0374707,2577.9,2577.7,3.87941]
[1727305585118,0.0374707,2577.9,2577.8,3.87927]
[1727305588601,0.0374707,2577.9,2577.5,3.87965]
[1727305588917,0.0374707,2577.9,2577.8,3.87927]
[1727305590085,0.0374707,2577.9,2577.8,4.77737]
[1727305590237,0.0374707,2577.9,2577.8,3.87927]
[1727305592339,0.55,2577.8,2576.7,0.9042]
[1727305592520,1.4535,2577.8,2577.5,3.87972]
[1727305593247,1.4535,2577.8,2577.6,3.87955]
[1727305593953,1.4535,2577.8,2577.5,3.87972]
[1727305594335,1.4535,2577.8,2577.5,7.75926]
[1727305595045,1.4535,2577.8,2577.6,3.87956]
[1727305595625,1.4535,2577.8,2577.5,3.87962]
[1727305595814,1.99049507,2577.8,2577.5,3.87962]
[1727305596214,0.55,2577.8,2577.6,3.87949]
[1727305596416,0.55,2577.8,2577.7,3.87942]
[1727305596951,0.0374707,2577.9,2577.8,3.87927]
[1727305597157,0.0374707,2577.9,2577.8,3.95680674]
[1727305597361,7.36,2578.1,2578.0,3.87897]
[1727305597955,7.36,2578.1,2577.9,3.87911]
[1727305598254,7.36,2578.1,2577.8,3.87927]
[1727305598255,8.096,2578.1,2577.8,3.87927]
[1727305598754,0.09697957,2578.0,2577.8,3.87927]
[1727305598911,0.09697957,2578.0,2577.8,7.75844]
[1727305599116,7.36,2578.1,2577.5,3.87959]
[1727305599314,7.36,2578.1,2577.7,3.87942]
[1727305599315,4.36961,2578.0,2577.7,3.87942]
[1727305599513,3.55,2578.0,2577.7,3.87942]
[1727305600128,3.55,2578.0,2577.8,3.87926]
[1727305601360,3.55,2578.0,2577.8,7.75837]
[1727305601664,3.55,2578.0,2577.8,3.87918]
[1727305602320,0.55,2578.1,2577.7,3.87933]
[1727305602624,0.55,2578.1,2577.6,3.8795]
[1727305602625,0.55,2577.9,2577.8,3.87927]
[1727305602825,0.8615,2578.2,2577.8,3.87927]
[1727305603033,0.55,2578.1,2577.8,3.87927]
[1727305603767,0.55,2578.2,2578.0,3.87897]
[1727305604055,0.55,2578.1,2577.8,3.87927]
[1727305604264,0.55,2578.1,2577.8,3.87918]